[Event "Titled Tuesday Blitz June 6 Early 2023"]
[White "Darini, Pouria"]
[Black "demon64fields"]
[WhiteFideId "12502200"]
[WhiteElo "2482"]
[BlackElo "2856"]
[Result "1-0"]
[Round "3"]
[TimeControl "180+2"]
[Date "2023.06.06"]
[WhiteClock "0:00:06"]
[BlackClock "0:01:05"]
[Board "34"]

1. e4 {[%clk 0:03:00]}  e6 {[%clk 0:02:59]} 2. d4 {[%clk 0:03:00]}  d5 {[%clk 0:03:00]} 3. Nc3 {[%clk 0:02:57]}  Bb4 {[%clk 0:02:59]} 4. e5 {[%clk 0:02:52]}  c5 {[%clk 0:02:59]} 5. a3 {[%clk 0:02:52]}  Bxc3+ {[%clk 0:02:59]} 6. bxc3 {[%clk 0:02:53]}  Nc6 {[%clk 0:03:00]} 7. Qg4 {[%clk 0:02:50]}  g6 {[%clk 0:03:00]} 8. a4 {[%clk 0:02:38]}  Bd7 {[%clk 0:02:59]} 9. h4 {[%clk 0:02:31]}  h6 {[%clk 0:02:58]} 10. Nf3 {[%clk 0:02:23]}  Qa5 {[%clk 0:02:57]} 11. Bd2 {[%clk 0:02:23]}  c4 {[%clk 0:02:58]} 12. Qf4 {[%clk 0:02:17]}  Nge7 {[%clk 0:02:57]} 13. Be2 {[%clk 0:02:12]}  O-O-O {[%clk 0:02:57]} 14. O-O {[%clk 0:02:03]}  Rdg8 {[%clk 0:02:55]} 15. g3 {[%clk 0:01:55]}  Nf5 {[%clk 0:02:55]} 16. Kg2 {[%clk 0:01:36]}  Rg7 {[%clk 0:02:46]} 17. Rh1 {[%clk 0:01:28]}  Rhg8 {[%clk 0:02:44]} 18. Be1 {[%clk 0:01:16]}  g5 {[%clk 0:02:43]} 19. hxg5 {[%clk 0:01:17]}  hxg5 {[%clk 0:02:44]} 20. Qc1 {[%clk 0:01:13]}  g4 {[%clk 0:02:42]} 21. Nh4 {[%clk 0:01:11]}  Nce7 {[%clk 0:02:42]} 22. Bd2 {[%clk 0:00:48]}  Nxh4+ {[%clk 0:02:38]} 23. Rxh4 {[%clk 0:00:48]}  Nf5 {[%clk 0:02:39]} 24. Rh5 {[%clk 0:00:40]}  Bc6 {[%clk 0:02:38]} 25. Be1 {[%clk 0:00:22]}  a6 {[%clk 0:02:37]} 26. Qa3 {[%clk 0:00:17]}  Kb8 {[%clk 0:02:37]} 27. Qc1 {[%clk 0:00:13]}  Ka8 {[%clk 0:02:37]} 28. Qf4 {[%clk 0:00:13]}  Qb6 {[%clk 0:02:35]} 29. Qc1 {[%clk 0:00:12]}  Qd8 {[%clk 0:02:34]} 30. Bd2 {[%clk 0:00:09]}  Rh8 {[%clk 0:02:32]} 31. Qh1 {[%clk 0:00:10]}  Rhg8 {[%clk 0:02:31]} 32. a5 {[%clk 0:00:09]}  Qd7 {[%clk 0:02:29]} 33. Rh7 {[%clk 0:00:08]}  Rg6 {[%clk 0:02:22]} 34. Qh5 {[%clk 0:00:06]}  Ba4 {[%clk 0:02:22]} 35. Ra2 {[%clk 0:00:06]}  Bb5 {[%clk 0:02:20]} 36. Rh8 {[%clk 0:00:05]}  Ka7 {[%clk 0:02:20]} 37. Rxg8 {[%clk 0:00:05]}  Rxg8 {[%clk 0:02:21]} 38. Ra1 {[%clk 0:00:06]}  Qe7 {[%clk 0:02:17]} 39. Bxg4 {[%clk 0:00:05]}  f6 {[%clk 0:02:10]} 40. Bxf5 {[%clk 0:00:05]}  exf5 {[%clk 0:02:11]} 41. Bf4 {[%clk 0:00:05]}  fxe5 {[%clk 0:02:05]} 42. Bxe5 {[%clk 0:00:06]}  f4 {[%clk 0:02:03]} 43. Bxf4 {[%clk 0:00:04]}  Qe4+ {[%clk 0:02:02]} 44. Qf3 {[%clk 0:00:04]}  Qf5 {[%clk 0:02:01]} 45. Re1 {[%clk 0:00:04]}  Bc6 {[%clk 0:01:55]} 46. Bb8+ {[%clk 0:00:03]}  Rxb8 {[%clk 0:01:50]} 47. Qxf5 {[%clk 0:00:04]}  Rd8 {[%clk 0:01:18]} 48. Re7 {[%clk 0:00:04]}  Ba4 {[%clk 0:01:17]} 49. g4 {[%clk 0:00:04]}  Rg8 {[%clk 0:01:15]} 50. Qxd5 {[%clk 0:00:04]}  Rb8 {[%clk 0:01:13]} 51. g5 {[%clk 0:00:04]}  Bxc2 {[%clk 0:01:13]} 52. f4 {[%clk 0:00:03]}  Ba4 {[%clk 0:01:10]} 53. Qc5+ {[%clk 0:00:03]}  Ka8 {[%clk 0:01:11]} 54. f5 {[%clk 0:00:04]}  Bc6+ {[%clk 0:01:11]} 55. d5 {[%clk 0:00:04]}  Ba4 {[%clk 0:01:10]} 56. f6 {[%clk 0:00:05]}  Bc2 {[%clk 0:01:10]} 57. f7 {[%clk 0:00:05]}  Bg6 {[%clk 0:01:08]} 58. Kg3 {[%clk 0:00:05]}  Rf8 {[%clk 0:01:05]} 59. Qb6 {[%clk 0:00:06]} 1-0


[Site "https://www.chess.com"]

[Event "Titled Tuesday Blitz June 6 Early 2023"]
[White "Beerdsen, Thomas"]
[Black "Mortazavi, Ali"]
[WhiteFideId "1030108"]
[BlackFideId "401323"]
[WhiteElo "2553"]
[BlackElo "2339"]
[Result "1-0"]
[Round "3"]
[TimeControl "180+2"]
[Date "2023.06.06"]
[WhiteClock "0:00:55"]
[BlackClock "0:00:17"]
[Board "35"]

1. e4 {[%clk 0:03:00]}  c6 {[%clk 0:02:59]} 2. d4 {[%clk 0:02:59]}  d5 {[%clk 0:03:00]} 3. f3 {[%clk 0:03:00]}  Qb6 {[%clk 0:02:59]} 4. Nc3 {[%clk 0:03:00]}  e6 {[%clk 0:02:59]} 5. a3 {[%clk 0:02:59]}  Nd7 {[%clk 0:03:00]} 6. Be3 {[%clk 0:02:58]}  Ngf6 {[%clk 0:03:00]} 7. Qd2 {[%clk 0:02:56]}  Qxb2 {[%clk 0:02:48]} 8. Rb1 {[%clk 0:02:56]}  Qxa3 {[%clk 0:02:48]} 9. Bd3 {[%clk 0:02:52]}  dxe4 {[%clk 0:02:36]} 10. fxe4 {[%clk 0:02:51]}  e5 {[%clk 0:02:05]} 11. Nf3 {[%clk 0:02:48]}  Qa5 {[%clk 0:02:01]} 12. O-O {[%clk 0:02:43]}  Be7 {[%clk 0:01:55]} 13. Bc4 {[%clk 0:02:13]}  O-O {[%clk 0:01:51]} 14. Nd5 {[%clk 0:02:10]}  Qd8 {[%clk 0:01:34]} 15. Nxe7+ {[%clk 0:02:10]}  Qxe7 {[%clk 0:01:34]} 16. dxe5 {[%clk 0:01:42]}  Nxe5 {[%clk 0:01:08]} 17. Nxe5 {[%clk 0:01:33]}  Qxe5 {[%clk 0:01:08]} 18. Bd4 {[%clk 0:01:33]}  Qxe4 {[%clk 0:00:38]} 19. Rbe1 {[%clk 0:01:16]}  Qg4 {[%clk 0:00:35]} 20. Rf4 {[%clk 0:01:12]}  Qg5 {[%clk 0:00:32]} 21. h4 {[%clk 0:01:02]}  Qh6 {[%clk 0:00:22]} 22. Bxf6 {[%clk 0:01:00]}  gxf6 {[%clk 0:00:22]} 23. Rg4+ {[%clk 0:01:01]}  Qg6 {[%clk 0:00:19]} 24. Rxg6+ {[%clk 0:01:01]}  hxg6 {[%clk 0:00:20]} 25. Qh6 {[%clk 0:01:01]}  Bf5 {[%clk 0:00:19]} 26. Rf1 {[%clk 0:00:54]}  Rae8 {[%clk 0:00:17]} 27. Rxf5 {[%clk 0:00:54]}  gxf5 {[%clk 0:00:16]} 28. Qg6+ {[%clk 0:00:54]}  Kh8 {[%clk 0:00:16]} 29. Qxf6+ {[%clk 0:00:54]}  Kg8 {[%clk 0:00:17]} 30. Qg6+ {[%clk 0:00:54]}  Kh8 {[%clk 0:00:17]} 31. Bxf7 {[%clk 0:00:55]} 1-0


[Site "https://www.chess.com"]

[Event "Titled Tuesday Blitz June 6 Early 2023"]
[White "Yeletsky, Ivan"]
[Black "Bethke, Richard"]
[WhiteFideId "24180327"]
[BlackFideId "12959243"]
[WhiteElo "2380"]
[BlackElo "2369"]
[Result "1-0"]
[Round "3"]
[TimeControl "180+2"]
[Date "2023.06.06"]
[WhiteClock "0:00:06"]
[BlackClock "0:00:01"]
[Board "36"]

1. d4 {[%clk 0:03:00]}  Nf6 {[%clk 0:02:59]} 2. Nc3 {[%clk 0:02:59]}  d5 {[%clk 0:02:58]} 3. Bf4 {[%clk 0:02:58]}  a6 {[%clk 0:02:53]} 4. e3 {[%clk 0:02:57]}  e6 {[%clk 0:02:52]} 5. g4 {[%clk 0:02:57]}  Bb4 {[%clk 0:02:51]} 6. Ne2 {[%clk 0:02:55]}  Ne4 {[%clk 0:02:47]} 7. a3 {[%clk 0:02:52]}  Qh4 {[%clk 0:02:43]} 8. Bg3 {[%clk 0:02:44]}  Bxc3+ {[%clk 0:02:42]} 9. bxc3 {[%clk 0:02:30]}  Qxg4 {[%clk 0:02:28]} 10. Rg1 {[%clk 0:02:29]}  Nc6 {[%clk 0:01:34]} 11. Bxc7 {[%clk 0:02:13]}  Ng5 {[%clk 0:01:33]} 12. Bg2 {[%clk 0:02:05]}  Ne4 {[%clk 0:01:22]} 13. Bxe4 {[%clk 0:01:41]}  Qxe4 {[%clk 0:01:23]} 14. Rxg7 {[%clk 0:01:41]}  Bd7 {[%clk 0:01:23]} 15. Qd3 {[%clk 0:01:37]}  Rc8 {[%clk 0:01:17]} 16. Bd6 {[%clk 0:01:34]}  Qh4 {[%clk 0:01:04]} 17. O-O-O {[%clk 0:01:16]}  Ne7 {[%clk 0:00:56]} 18. Rdg1 {[%clk 0:00:55]}  Ng6 {[%clk 0:00:55]} 19. Nf4 {[%clk 0:00:48]}  Qxf2 {[%clk 0:00:40]} 20. Rf1 {[%clk 0:00:42]}  Qxh2 {[%clk 0:00:22]} 21. Nxg6 {[%clk 0:00:38]}  Qxd6 {[%clk 0:00:22]} 22. Nxh8 {[%clk 0:00:38]}  Qxa3+ {[%clk 0:00:22]} 23. Kd2 {[%clk 0:00:36]}  Bb5 {[%clk 0:00:21]} 24. Rg8+ {[%clk 0:00:37]}  Kd7 {[%clk 0:00:21]} 25. Rxf7+ {[%clk 0:00:37]}  Kd6 {[%clk 0:00:21]} 26. Rxc8 {[%clk 0:00:18]}  Bxd3 {[%clk 0:00:21]} 27. Kxd3 {[%clk 0:00:12]}  Qc1 {[%clk 0:00:20]} 28. Ke2 {[%clk 0:00:05]}  Qxc2+ {[%clk 0:00:20]} 29. Kf3 {[%clk 0:00:06]}  Qd1+ {[%clk 0:00:18]} 30. Kf4 {[%clk 0:00:06]}  h5 {[%clk 0:00:12]} 31. Kg5 {[%clk 0:00:05]}  Qg4+ {[%clk 0:00:12]} 32. Kh6 {[%clk 0:00:06]}  h4 {[%clk 0:00:09]} 33. Rg7 {[%clk 0:00:06]}  Qe2 {[%clk 0:00:02]} 34. Nf7+ {[%clk 0:00:03]}  Kd7 {[%clk 0:00:02]} 35. Rd8+ {[%clk 0:00:03]}  Kc6 {[%clk 0:00:02]} 36. Rh8 {[%clk 0:00:04]}  Qxe3+ {[%clk 0:00:02]} 37. Kh7 {[%clk 0:00:05]}  h3 {[%clk 0:00:03]} 38. Ne5+ {[%clk 0:00:05]}  Kb5 {[%clk 0:00:03]} 39. Kg8 {[%clk 0:00:06]}  Qxc3 {[%clk 0:00:03]} 40. Rxb7+ {[%clk 0:00:05]}  Ka5 {[%clk 0:00:03]} 41. Rbh7 {[%clk 0:00:02]}  Qc8+ {[%clk 0:00:03]} 42. Kg7 {[%clk 0:00:02]}  Qc7+ {[%clk 0:00:04]} 43. Kf6 {[%clk 0:00:03]}  Qc3 {[%clk 0:00:04]} 44. Rxh3 {[%clk 0:00:03]}  Qe1 {[%clk 0:00:04]} 45. R8h4 {[%clk 0:00:03]}  Kb6 {[%clk 0:00:04]} 46. Kxe6 {[%clk 0:00:04]}  a5 {[%clk 0:00:04]} 47. Rb3+ {[%clk 0:00:04]}  Ka6 {[%clk 0:00:04]} 48. Rh8 {[%clk 0:00:03]}  Ka7 {[%clk 0:00:02]} 49. Rb5 {[%clk 0:00:03]}  a4 {[%clk 0:00:02]} 50. Rxd5 {[%clk 0:00:02]}  a3 {[%clk 0:00:03]} 51. Rd7+ {[%clk 0:00:03]}  Kb6 {[%clk 0:00:02]} 52. Rb8+ {[%clk 0:00:04]}  Ka6 {[%clk 0:00:02]} 53. Ra8+ {[%clk 0:00:04]}  Kb6 {[%clk 0:00:02]} 54. Rxa3 {[%clk 0:00:05]}  Qf1 {[%clk 0:00:01]} 55. Rd6+ {[%clk 0:00:06]} 1-0


[Site "https://www.chess.com"]

[Event "Titled Tuesday Blitz June 6 Early 2023"]
[White "Jaskolka, Tomasz"]
[Black "Harutjunyan, Gevorg"]
[WhiteFideId "1170791"]
[BlackFideId "13300873"]
[WhiteElo "2155"]
[BlackElo "2474"]
[Result "0-1"]
[Round "3"]
[TimeControl "180+2"]
[Date "2023.06.06"]
[WhiteClock "0:00:01"]
[BlackClock "0:00:23"]
[Board "38"]

1. d4 {[%clk 0:03:00]}  Nf6 {[%clk 0:02:59]} 2. c4 {[%clk 0:03:00]}  g6 {[%clk 0:02:59]} 3. g3 {[%clk 0:02:59]}  Bg7 {[%clk 0:02:59]} 4. Bg2 {[%clk 0:03:00]}  O-O {[%clk 0:03:00]} 5. Nf3 {[%clk 0:03:01]}  d6 {[%clk 0:03:01]} 6. Nc3 {[%clk 0:03:01]}  c6 {[%clk 0:02:58]} 7. O-O {[%clk 0:03:01]}  Qa5 {[%clk 0:02:58]} 8. h3 {[%clk 0:02:54]}  Be6 {[%clk 0:02:57]} 9. Qd3 {[%clk 0:02:40]}  d5 {[%clk 0:02:45]} 10. cxd5 {[%clk 0:02:38]}  cxd5 {[%clk 0:02:43]} 11. Bd2 {[%clk 0:02:35]}  Nc6 {[%clk 0:02:25]} 12. a3 {[%clk 0:02:24]}  Bf5 {[%clk 0:02:01]} 13. Qe3 {[%clk 0:02:19]}  Qb6 {[%clk 0:01:55]} 14. b4 {[%clk 0:01:33]}  Be4 {[%clk 0:01:36]} 15. Ne5 {[%clk 0:01:16]}  Nxe5 {[%clk 0:01:25]} 16. dxe5 {[%clk 0:01:16]}  d4 {[%clk 0:01:24]} 17. Qf4 {[%clk 0:00:49]}  Bxg2 {[%clk 0:01:23]} 18. exf6 {[%clk 0:00:41]}  Bxf6 {[%clk 0:01:02]} 19. Kxg2 {[%clk 0:00:22]}  dxc3 {[%clk 0:01:02]} 20. Be3 {[%clk 0:00:22]}  Qb5 {[%clk 0:00:54]} 21. Rfe1 {[%clk 0:00:16]}  Rac8 {[%clk 0:00:54]} 22. Rac1 {[%clk 0:00:16]}  c2 {[%clk 0:00:52]} 23. h4 {[%clk 0:00:15]}  Bb2 {[%clk 0:00:44]} 24. h5 {[%clk 0:00:12]}  Qd5+ {[%clk 0:00:36]} 25. f3 {[%clk 0:00:11]}  Bxc1 {[%clk 0:00:33]} 26. Bxc1 {[%clk 0:00:12]}  g5 {[%clk 0:00:33]} 27. Qe3 {[%clk 0:00:10]}  h6 {[%clk 0:00:29]} 28. Kh2 {[%clk 0:00:09]}  Qe6 {[%clk 0:00:28]} 29. Qd3 {[%clk 0:00:09]}  Rfd8 {[%clk 0:00:27]} 30. Qb5 {[%clk 0:00:07]}  Rd1 {[%clk 0:00:26]} 31. Bxg5 {[%clk 0:00:01]}  Rxe1 {[%clk 0:00:24]} 32. Bf4 {[%clk 0:00:01]}  Qxe2+ {[%clk 0:00:23]} 33. Kh3 {[%clk 0:00:01]}  Qxb5 {[%clk 0:00:23]} 0-1


[Site "https://www.chess.com"]

[Event "Titled Tuesday Blitz June 6 Early 2023"]
[White "Koutlas, Nikolaos"]
[Black "Gorovets, Andrey"]
[WhiteFideId "25827138"]
[BlackFideId "13504037"]
[WhiteElo "2215"]
[BlackElo "2459"]
[Result "1/2-1/2"]
[Round "3"]
[TimeControl "180+2"]
[Date "2023.06.06"]
[WhiteClock "0:00:09"]
[BlackClock "0:00:23"]
[Board "39"]

1. c4 {[%clk 0:03:00]}  Nf6 {[%clk 0:02:58]} 2. Nc3 {[%clk 0:02:57]}  c5 {[%clk 0:02:57]} 3. g3 {[%clk 0:02:57]}  e6 {[%clk 0:02:54]} 4. Nf3 {[%clk 0:02:53]}  b6 {[%clk 0:02:53]} 5. Bg2 {[%clk 0:02:53]}  Bb7 {[%clk 0:02:54]} 6. O-O {[%clk 0:02:53]}  Be7 {[%clk 0:02:52]} 7. d4 {[%clk 0:02:52]}  cxd4 {[%clk 0:02:53]} 8. Nxd4 {[%clk 0:02:53]}  Bxg2 {[%clk 0:02:53]} 9. Kxg2 {[%clk 0:02:54]}  Qc8 {[%clk 0:02:53]} 10. b3 {[%clk 0:02:51]}  d5 {[%clk 0:02:44]} 11. Ndb5 {[%clk 0:02:36]}  a6 {[%clk 0:02:38]} 12. Nd4 {[%clk 0:02:22]}  dxc4 {[%clk 0:02:37]} 13. Bf4 {[%clk 0:02:13]}  O-O {[%clk 0:02:29]} 14. Kg1 {[%clk 0:02:13]}  Rd8 {[%clk 0:02:28]} 15. e3 {[%clk 0:01:57]}  Nc6 {[%clk 0:02:20]} 16. Nxc6 {[%clk 0:01:25]}  Qxc6 {[%clk 0:02:21]} 17. Qc2 {[%clk 0:01:21]}  Nd7 {[%clk 0:02:03]} 18. g4 {[%clk 0:01:18]}  Rac8 {[%clk 0:02:00]} 19. Ne2 {[%clk 0:01:13]}  e5 {[%clk 0:01:53]} 20. Bg3 {[%clk 0:01:09]}  cxb3 {[%clk 0:01:52]} 21. Qxb3 {[%clk 0:01:07]}  Nc5 {[%clk 0:01:52]} 22. Qc2 {[%clk 0:01:04]}  Qe6 {[%clk 0:01:29]} 23. h3 {[%clk 0:00:39]}  Nd3 {[%clk 0:01:27]} 24. Qb3 {[%clk 0:00:38]}  Qxb3 {[%clk 0:01:19]} 25. axb3 {[%clk 0:00:38]}  Rc2 {[%clk 0:01:19]} 26. Nc1 {[%clk 0:00:34]}  Nxc1 {[%clk 0:01:10]} 27. Rfxc1 {[%clk 0:00:33]}  Rxc1+ {[%clk 0:01:10]} 28. Rxc1 {[%clk 0:00:33]}  f6 {[%clk 0:01:11]} 29. Rc6 {[%clk 0:00:29]}  Bc5 {[%clk 0:01:07]} 30. g5 {[%clk 0:00:30]}  Kf7 {[%clk 0:01:07]} 31. gxf6 {[%clk 0:00:29]}  gxf6 {[%clk 0:01:08]} 32. Rxf6+ {[%clk 0:00:14]}  Kxf6 {[%clk 0:01:06]} 33. Bh4+ {[%clk 0:00:14]}  Ke6 {[%clk 0:01:05]} 34. Bxd8 {[%clk 0:00:14]}  b5 {[%clk 0:01:03]} 35. Kf1 {[%clk 0:00:11]}  Bb4 {[%clk 0:01:03]} 36. Ke2 {[%clk 0:00:10]}  a5 {[%clk 0:01:02]} 37. Kd3 {[%clk 0:00:10]}  a4 {[%clk 0:00:59]} 38. bxa4 {[%clk 0:00:11]}  bxa4 {[%clk 0:01:00]} 39. Kc4 {[%clk 0:00:12]}  a3 {[%clk 0:00:58]} 40. Kb3 {[%clk 0:00:12]}  e4 {[%clk 0:00:54]} 41. Bb6 {[%clk 0:00:09]}  Be1 {[%clk 0:00:52]} 42. Kxa3 {[%clk 0:00:08]}  Bxf2 {[%clk 0:00:51]} 43. Kb3 {[%clk 0:00:09]}  Kd5 {[%clk 0:00:44]} 44. Kc3 {[%clk 0:00:09]}  Bg3 {[%clk 0:00:44]} 45. Kd2 {[%clk 0:00:09]}  Be5 {[%clk 0:00:43]} 46. Ke2 {[%clk 0:00:09]}  Ke6 {[%clk 0:00:25]} 47. Bd8 {[%clk 0:00:09]}  Kf5 {[%clk 0:00:25]} 48. Be7 {[%clk 0:00:08]}  Ke6 {[%clk 0:00:25]} 49. Bd8 {[%clk 0:00:09]}  Kf5 {[%clk 0:00:23]} 50. Be7 {[%clk 0:00:09]}  Ke6 {[%clk 0:00:23]} 51. Bd8 {[%clk 0:00:09]} 1/2-1/2


[Site "https://www.chess.com"]

[Event "Titled Tuesday Blitz June 6 Early 2023"]
[White "Hambleton, Aman"]
[Black "KorolDimitriy75"]
[WhiteFideId "2606577"]
[WhiteElo "2511"]
[BlackElo "2465"]
[Result "1-0"]
[Round "3"]
[TimeControl "180+2"]
[Date "2023.06.06"]
[WhiteClock "0:00:29"]
[BlackClock "0:00:04"]
[Board "40"]

1. d4 {[%clk 0:03:00]}  Nf6 {[%clk 0:02:59]} 2. Bf4 {[%clk 0:02:58]}  c5 {[%clk 0:02:59]} 3. e3 {[%clk 0:02:58]}  Qb6 {[%clk 0:02:59]} 4. Na3 {[%clk 0:02:44]}  Qxb2 {[%clk 0:02:58]} 5. Nb5 {[%clk 0:02:42]}  Nd5 {[%clk 0:02:58]} 6. Rb1 {[%clk 0:02:42]}  Qxa2 {[%clk 0:02:57]} 7. Ra1 {[%clk 0:02:21]}  Qb2 {[%clk 0:02:57]} 8. Rb1 {[%clk 0:02:21]}  Qa2 {[%clk 0:02:57]} 9. c4 {[%clk 0:02:22]}  Qa5+ {[%clk 0:01:30]} 10. Qd2 {[%clk 0:02:20]}  Qxd2+ {[%clk 0:01:25]} 11. Kxd2 {[%clk 0:02:20]}  Nxf4 {[%clk 0:00:44]} 12. Nc7+ {[%clk 0:02:19]}  Kd8 {[%clk 0:00:44]} 13. Nxa8 {[%clk 0:02:20]}  Ne6 {[%clk 0:00:42]} 14. Nf3 {[%clk 0:02:19]}  d6 {[%clk 0:00:27]} 15. d5 {[%clk 0:01:53]}  Nc7 {[%clk 0:00:27]} 16. Ng5 {[%clk 0:01:53]}  Nxa8 {[%clk 0:00:21]} 17. Nxf7+ {[%clk 0:01:53]}  Ke8 {[%clk 0:00:21]} 18. Nxh8 {[%clk 0:01:54]}  g6 {[%clk 0:00:20]} 19. Bd3 {[%clk 0:01:13]}  Bg7 {[%clk 0:00:20]} 20. Nxg6 {[%clk 0:01:13]}  hxg6 {[%clk 0:00:21]} 21. Bxg6+ {[%clk 0:01:14]}  Kf8 {[%clk 0:00:19]} 22. h4 {[%clk 0:01:12]}  Nd7 {[%clk 0:00:18]} 23. Bf5 {[%clk 0:00:32]}  Nab6 {[%clk 0:00:17]} 24. Rbc1 {[%clk 0:00:33]}  Ne5 {[%clk 0:00:16]} 25. Bxc8 {[%clk 0:00:33]}  Nxc8 {[%clk 0:00:13]} 26. f4 {[%clk 0:00:33]}  Ng4 {[%clk 0:00:13]} 27. Ke2 {[%clk 0:00:32]}  b6 {[%clk 0:00:11]} 28. Kf3 {[%clk 0:00:31]}  Nf6 {[%clk 0:00:09]} 29. g4 {[%clk 0:00:31]}  Kf7 {[%clk 0:00:09]} 30. g5 {[%clk 0:00:30]}  Nh5 {[%clk 0:00:08]} 31. Kg4 {[%clk 0:00:30]}  Nxf4 {[%clk 0:00:05]} 32. exf4 {[%clk 0:00:29]}  e5 {[%clk 0:00:04]} 33. dxe6+ {[%clk 0:00:28]}  Kxe6 {[%clk 0:00:04]} 34. f5+ {[%clk 0:00:29]}  Kf7 {[%clk 0:00:04]} 35. f6 {[%clk 0:00:29]}  Bf8 {[%clk 0:00:04]} 36. Kf5 {[%clk 0:00:29]} 1-0


[Site "https://www.chess.com"]

[Event "Titled Tuesday Blitz June 6 Early 2023"]
[White "Chan, Kim Yew"]
[Black "Bryakin, Mikhail"]
[WhiteFideId "5717981"]
[BlackFideId "4165314"]
[WhiteElo "2206"]
[BlackElo "2464"]
[Result "0-1"]
[Round "3"]
[TimeControl "180+2"]
[Date "2023.06.06"]
[WhiteClock "0:00:04"]
[BlackClock "0:01:10"]
[Board "41"]

1. Nf3 {[%clk 0:03:00]}  Nf6 {[%clk 0:02:50]} 2. c4 {[%clk 0:03:01]}  g6 {[%clk 0:02:46]} 3. d4 {[%clk 0:03:01]}  Bg7 {[%clk 0:02:47]} 4. g3 {[%clk 0:03:01]}  O-O {[%clk 0:02:47]} 5. Bg2 {[%clk 0:03:02]}  d6 {[%clk 0:02:48]} 6. Nc3 {[%clk 0:03:02]}  Bf5 {[%clk 0:02:48]} 7. Nh4 {[%clk 0:02:56]}  Bc8 {[%clk 0:02:48]} 8. Nf3 {[%clk 0:02:52]}  c6 {[%clk 0:02:48]} 9. e4 {[%clk 0:02:52]}  e5 {[%clk 0:02:34]} 10. O-O {[%clk 0:02:43]}  Nbd7 {[%clk 0:02:34]} 11. Re1 {[%clk 0:02:33]}  a5 {[%clk 0:02:30]} 12. b3 {[%clk 0:02:29]}  Qc7 {[%clk 0:02:28]} 13. h3 {[%clk 0:02:28]}  Re8 {[%clk 0:02:24]} 14. Be3 {[%clk 0:02:27]}  b6 {[%clk 0:02:23]} 15. Qc2 {[%clk 0:02:25]}  Ba6 {[%clk 0:02:22]} 16. Rad1 {[%clk 0:02:26]}  h6 {[%clk 0:02:15]} 17. d5 {[%clk 0:02:07]}  c5 {[%clk 0:02:09]} 18. Nd2 {[%clk 0:01:51]}  Nh5 {[%clk 0:02:06]} 19. Kh2 {[%clk 0:01:48]}  Rf8 {[%clk 0:02:06]} 20. f4 {[%clk 0:01:36]}  exf4 {[%clk 0:01:55]} 21. gxf4 {[%clk 0:01:37]}  Rae8 {[%clk 0:01:53]} 22. e5 {[%clk 0:01:19]}  dxe5 {[%clk 0:01:52]} 23. f5 {[%clk 0:01:19]}  Nf4 {[%clk 0:01:42]} 24. fxg6 {[%clk 0:01:12]}  fxg6 {[%clk 0:01:38]} 25. Be4 {[%clk 0:01:08]}  g5 {[%clk 0:01:35]} 26. Rf1 {[%clk 0:01:03]}  Nf6 {[%clk 0:01:31]} 27. Nf3 {[%clk 0:00:52]}  Bc8 {[%clk 0:01:30]} 28. Ng1 {[%clk 0:00:28]}  Qd7 {[%clk 0:01:28]} 29. d6 {[%clk 0:00:22]}  Nxe4 {[%clk 0:01:21]} 30. Qxe4 {[%clk 0:00:11]}  Bb7 {[%clk 0:01:21]} 31. Qc2 {[%clk 0:00:09]}  Rf6 {[%clk 0:01:22]} 32. Ne4 {[%clk 0:00:09]}  Bxe4 {[%clk 0:01:21]} 33. Qxe4 {[%clk 0:00:09]}  Rxd6 {[%clk 0:01:21]} 34. Qf3 {[%clk 0:00:09]}  Rd8 {[%clk 0:01:20]} 35. Rxd6 {[%clk 0:00:08]}  Qxd6 {[%clk 0:01:21]} 36. Qe4 {[%clk 0:00:08]}  Qd3 {[%clk 0:01:19]} 37. Qxd3 {[%clk 0:00:07]}  Rxd3 {[%clk 0:01:19]} 38. Re1 {[%clk 0:00:06]}  Kf7 {[%clk 0:01:16]} 39. Nf3 {[%clk 0:00:05]}  Ke6 {[%clk 0:01:15]} 40. Nd2 {[%clk 0:00:05]}  Kf5 {[%clk 0:01:14]} 41. Kg3 {[%clk 0:00:05]}  e4 {[%clk 0:01:14]} 42. Kf2 {[%clk 0:00:05]}  Bc3 {[%clk 0:01:12]} 43. Rd1 {[%clk 0:00:04]}  Nxh3+ {[%clk 0:01:12]} 44. Ke2 {[%clk 0:00:04]}  Nf4+ {[%clk 0:01:12]} 45. Kf2 {[%clk 0:00:04]}  Rxe3 {[%clk 0:01:09]} 46. Kxe3 {[%clk 0:00:04]}  Bd4# {[%clk 0:01:10]} 0-1


[Site "https://www.chess.com"]

[Event "Titled Tuesday Blitz June 6 Early 2023"]
[White "Ilamparthi A R"]
[Black "Nikologorsky, Matfei"]
[WhiteFideId "45015775"]
[BlackFideId "24102474"]
[WhiteElo "2348"]
[BlackElo "2153"]
[Result "0-1"]
[Round "3"]
[TimeControl "180+2"]
[Date "2023.06.06"]
[WhiteClock "0:00:14"]
[BlackClock "0:00:23"]
[Board "42"]

1. e4 {[%clk 0:03:00]}  c5 {[%clk 0:02:58]} 2. Nf3 {[%clk 0:03:00]}  e6 {[%clk 0:02:58]} 3. d3 {[%clk 0:03:00]}  Nc6 {[%clk 0:02:57]} 4. g3 {[%clk 0:03:00]}  g6 {[%clk 0:02:57]} 5. Bg2 {[%clk 0:03:01]}  Bg7 {[%clk 0:02:57]} 6. O-O {[%clk 0:03:01]}  Nge7 {[%clk 0:02:57]} 7. Re1 {[%clk 0:03:01]}  O-O {[%clk 0:02:55]} 8. c3 {[%clk 0:03:01]}  d5 {[%clk 0:02:51]} 9. e5 {[%clk 0:02:51]}  b5 {[%clk 0:02:48]} 10. h4 {[%clk 0:02:50]}  Qc7 {[%clk 0:02:28]} 11. Bf4 {[%clk 0:02:49]}  b4 {[%clk 0:02:26]} 12. h5 {[%clk 0:02:48]}  bxc3 {[%clk 0:02:25]} 13. bxc3 {[%clk 0:02:48]}  Rb8 {[%clk 0:02:20]} 14. Nbd2 {[%clk 0:02:47]}  Ba6 {[%clk 0:02:18]} 15. Nf1 {[%clk 0:02:47]}  Qa5 {[%clk 0:02:15]} 16. Qd2 {[%clk 0:02:32]}  d4 {[%clk 0:02:07]} 17. h6 {[%clk 0:02:02]}  dxc3 {[%clk 0:01:56]} 18. Qe2 {[%clk 0:01:45]}  Bh8 {[%clk 0:01:54]} 19. N1h2 {[%clk 0:01:31]}  Nf5 {[%clk 0:01:45]} 20. Ng4 {[%clk 0:01:26]}  Ncd4 {[%clk 0:01:43]} 21. Nxd4 {[%clk 0:01:22]}  Nxd4 {[%clk 0:01:43]} 22. Qe3 {[%clk 0:01:20]}  Nc2 {[%clk 0:01:40]} 23. Qe2 {[%clk 0:01:19]}  Nxa1 {[%clk 0:01:33]} 24. Rxa1 {[%clk 0:01:19]}  Rfd8 {[%clk 0:01:29]} 25. Bg5 {[%clk 0:01:15]}  Bxd3 {[%clk 0:01:12]} 26. Qe3 {[%clk 0:01:04]}  Bf5 {[%clk 0:01:07]} 27. Nf6+ {[%clk 0:00:50]}  Bxf6 {[%clk 0:01:04]} 28. Bxf6 {[%clk 0:00:51]}  Qa4 {[%clk 0:00:43]} 29. Bxd8 {[%clk 0:00:33]}  Rxd8 {[%clk 0:00:37]} 30. Qxc5 {[%clk 0:00:33]}  c2 {[%clk 0:00:33]} 31. Qe7 {[%clk 0:00:27]}  Qe8 {[%clk 0:00:32]} 32. Qf6 {[%clk 0:00:14]}  Qf8 {[%clk 0:00:33]} 33. Rf1 {[%clk 0:00:14]}  Rd1 {[%clk 0:00:26]} 34. Qg5 {[%clk 0:00:15]}  Bd3 {[%clk 0:00:26]} 35. g4 {[%clk 0:00:14]}  Bxf1 {[%clk 0:00:25]} 36. Bxf1 {[%clk 0:00:14]}  c1=Q {[%clk 0:00:23]} 0-1


[Site "https://www.chess.com"]